Cogmind - Beta 13 @@@ ROGUE MODE // 2024.05.26 @ 02:06:03 Player: Redclaw Result: Destroyed by as-44889 with Assembled Heavy Rifle Performance ------------- Evolutions (0) 0 Regions Visited (4) 800 Robots Destroyed (15) 75 Value Destroyed (356) 356 Prototype IDs (0) 0 Alien Tech Used (0) 0 Bonus (300) 300 TOTAL SCORE: 1531 Bonus ------- Aligned with FarCom 300 Cogmind --------- Core Integrity 0/250 Matter 199/300 Energy 100/100 System Corruption 2% Temperature Cool (0) Movement Rolling (110) Ox2 Location -9/Mines Parts ------- > --- POWER (1) -------- (None) > --- PROPULSION (2) --- Wheel Wheel > --- UTILITY (2) ------ High-capacity Storage Unit Visual Processing Unit > --- WEAPON (2) ------- Assault Rifle > --- INVENTORY (20) --- Light Nuclear Core Improved Heat Sink Weapon Shielding Weapon Shielding Thief Drone Bay AWS/Autocannon Grenade Launcher Grenade Launcher Rocket Launcher Peak State ------------ > --- POWER ------------ Ion Engine > --- PROPULSION ------- Wheel Wheel > --- UTILITY ---------- High-capacity Storage Unit Visual Processing Unit > --- WEAPON ----------- Assault Rifle > --- INVENTORY -------- Light Nuclear Core Improved Heat Sink Weapon Shielding Weapon Shielding Thief Drone Bay AWS/Autocannon Grenade Launcher Rocket Launcher [Rating: 11] Favorites ----------- Power Light Ion Engine Engine Light Ion Engine Power Core Light Nuclear Core Propulsion Light Treads Treads Light Treads Wheel Wheel Utility Visual Processing Unit Storage Small Storage Unit Processor Visual Processing Unit Weapon Assault Rifle Ballistic Gun Assault Rifle Launcher Grenade Launcher Build | -11 -10 -10 -10 -9 ------- Run | Yrd Mat Min Exi Min Slots Evolved . | . . . . . Power . | . . . . . Propulsion . | . . . . . Utility . | . . . . . Weapon . | . . . . . Parts Attached 15 | 4 4 4 1 2 Power 3 | . 1 2 . . Engine 2 | . 1 1 . . Core 1 | . . 1 . . Reactor . | . . . . . Propulsion 4 | 2 . 2 . . Treads 2 | 2 . . . . Leg . | . . . . . Wheel 2 | . . 2 . . Hover . | . . . . . Flight . | . . . . . Utility 3 | 1 1 . 1 . Device . | . . . . . Storage 2 | 1 . . 1 . Processor 1 | . 1 . . . Hackware . | . . . . . Protection . | . . . . . Artifact . | . . . . . Weapon 5 | 1 2 . . 2 Energy Gun . | . . . . . Energy Cannon . | . . . . . Ballistic Gun 3 | 1 . . . 2 Ballistic Cannon . | . . . . . Launcher 2 | . 2 . . . Special Weapon . | . . . . . Impact Weapon . | . . . . . Slashing Weapon . | . . . . . Piercing Weapon . | . . . . . Special Melee Weapon . | . . . . . Unidentified Prototypes . | . . . . . Parts Lost 2 | . . 1 . 1 Power 2 | . . 1 . 1 Propulsion . | . . . . . Utility . | . . . . . Weapon . | . . . . . Highest Loss Streak 1 | . . 1 . 1 To Critical Strikes . | . . . . . Average Slot Usage (%) 80 | . 80 84 74 73 Engine 13 | . 11 13 14 12 Treads 17 | . 28 25 . . Wheel 10 | . . 2 28 28 Storage 14 | . 14 14 14 14 Processor 13 | . 11 14 14 14 Ballistic Gun 10 | . 14 14 3 4 Naked Turns . | . . . . . Heaviest Build 47 | 7 13 12 47 47 Greatest Support 40 | 40 40 40 20 20 Greatest Overweight (x) 2 | . . . 2 2 Average Overweight (x) . | . . . 1 2 Largest Inventory Capacity 20 | 8 8 8 20 20 Average Capacity 11 | 6 8 8 18 20 Most Carried 12 | 5 5 8 11 12 Average Carried 6 | 2 3 5 8 11 Final Capacity 20 | 8 8 8 20 20 Final Carried 11 | 3 5 7 11 11 Class Distribution -------------------- 100% | Mutant Dominant Class ---------------- Mutant | -10/Materials Mutant | -10/Mines Mutant | -10/Exiles Mutant | -9/Mines Resources | -11 -10 -10 -10 -9 ----------- Run | Yrd Mat Min Exi Min Matter Collected 483 | 154 132 129 . 68 Remotely . | . . . . . Salvage Created 344 | . 213 131 . . Parts 23 | . 14 9 . . Haulers Intercepted . | . . . . . Recyclers Shooed . | . . . . . Parts Field Recycled . | . . . . . Retrieved Matter . | . . . . . Parts Self-Destructed . | . . . . . Prevented . | . . . . . Kills | -11 -10 -10 -10 -9 ------- Run | Yrd Mat Min Exi Min Combat Hostiles Destroyed 12 | . 7 5 . . Guns 7 | . 2 5 . . AOE 5 | . 5 . . . Classes Destroyed 4 | . 4 . . . Worker 1 | . 1 . . . Watcher 2 | . 2 . . . Swarmer 6 | . 3 3 . . Grunt 6 | . 4 2 . . Best Kill Streak 7 | . 7 3 . . Combat Bots Only 5 | . 5 3 . . Max Kills in Single Turn 2 | . 2 1 . . Gunslinging . | . . . . . Exploded 2 | . 2 . . . Melee . | . . . . . Uniques/NPCs Destroyed . | . . . . . Combat | -11 -10 -10 -10 -9 -------- Run | Yrd Mat Min Exi Min Hostile Shots Fired 75 | . 28 41 . 6 Missed 17 | . 8 9 . . Damage Taken 795 | . 251 353 . 191 Core 251 | . 45 134 . 72 Absorbed by Shields . | . . . . . Core Remaining (%) 100 | 100 . . . . Volleys Fired 59 | . 33 24 . 2 Largest 2 | . 2 1 . 1 Hottest 50 | . 50 20 . 20 Shots Fired 65 | . 38 25 . 2 Gun 60 | . 33 25 . 2 Cannon . | . . . . . Launcher 5 | . 5 . . . Special . | . . . . . Kinetic 60 | . 33 25 . 2 Thermal . | . . . . . Explosive 5 | . 5 . . . Electromagnetic . | . . . . . Robot Hit Streak 6 | . 6 4 . 5 Robot Miss Streak 9 | . 9 5 . 1 Penetration Max . | . . . . . Secondary Targets . | . . . . . Shots Hit Robots 35 | . 21 13 . 1 Core Hits 27 | . 19 7 . 1 Critical Kills 1 | . . 1 . . Critical Parts Destroyed 1 | . . 1 . . Critical Strikes 2 | . . 2 . . Destroy 2 | . . 2 . . Melee Attacks . | . . . . . Impact . | . . . . . Slashing . | . . . . . Piercing . | . . . . . Sneak Attacks . | . . . . . Combat Hostiles . | . . . . . Follow-up Attacks . | . . . . . Damage Inflicted 747 | . 545 192 . 10 Guns 432 | . 241 181 . 10 Cannons . | . . . . . Explosions 304 | . 304 . . . Melee . | . . . . . Ramming 11 | . . 11 . . Kinetic 432 | . 241 181 . 10 Thermal . | . . . . . Explosive 304 | . 304 . . . Electromagnetic . | . . . . . Impact . | . . . . . Slashing . | . . . . . Piercing . | . . . . . Highest Corruption 2 | . 2 2 2 2 Average Corruption 2 | . 2 2 2 2 Corruption Purged . | . . . . . Corruption Blocked . | . . . . . Effects 28 | . 2 11 13 2 Message Errors 8 | . 2 2 3 1 Matter Fused 3 | . . 1 1 1 Heat Flow Errors 4 | . . 2 2 . Energy Discharges 3 | . . 1 2 . Data Loss (minor) 5 | . . 2 3 . Data Loss (major) 3 | . . 1 2 . Misfires 1 | . . 1 . . Alerts 1 | . . 1 . . Overload Shots . | . . . . . Overflow Damage . | . . . . . Projectiles . | . . . . . Explosions . | . . . . . Melee . | . . . . . Knockbacks . | . . . . . Impact . | . . . . . Kinetic . | . . . . . Secondary . | . . . . . Self-Inflicted Damage . | . . . . . Shots . | . . . . . Rammed 3 | . . 3 . . Targets Rammed 3 | . . 3 . . Kicked . | . . . . . Crushed . | . . . . . Highest Temperature 275 | . 11 275 142 . Average Temperature 95 | . 5 132 69 . Received Heat Transfer 237 | . 111 126 . . Siege Activations . | . . . . . Robots Corrupted . | . . . . . Combat Hostiles . | . . . . . Parts Fried . | . . . . . Impact Corruptions . | . . . . . Robots Melted . | . . . . . Combat Hostiles . | . . . . . Parts Melted . | . . . . . Heat Transferred . | . . . . . Parts Sabotaged . | . . . . . Parts Stolen . | . . . . . Parts Stripped . | . . . . . Power Chain Reactions . | . . . . . Alert | -11 -10 -10 -10 -9 ------- Run | Yrd Mat Min Exi Min Peak Influence 177 | . 177 139 . 20 Initial 69 | . . 69 . . Average 62 | . 86 56 . 1 Maximum Alert Level . | . . . . . Low Security (%) 100 | 100 100 100 . 100 Level 1 . | . . . . . Level 2 . | . . . . . Level 3 . | . . . . . Level 4 . | . . . . . Level 5 . | . . . . . High Security . | . . . . . Max Security . | . . . . . Squads Dispatched . | . . . . . Investigation . | . . . . . Extermination . | . . . . . Reinforcement . | . . . . . Assault . | . . . . . Garrison . | . . . . . Intercept . | . . . . . Searches Triggered . | . . . . . Construction Impeded . | . . . . . Haulers Reinforced . | . . . . . Active Scanning Responses . | . . . . . Cargo Convoy Interrupts . | . . . . . Stealth | -11 -10 -10 -10 -9 --------- Run | Yrd Mat Min Exi Min Distress Signals 2 | . 2 . . . Communications Jammed . | . . . . . Distress Signals . | . . . . . Times Spotted 22 | . 9 5 . 8 Peak Tracking Total 6 | . 4 3 . 6 Tactical Retreats . | . . . . . Traps | -11 -10 -10 -10 -9 ------- Run | Yrd Mat Min Exi Min Traps Triggered 1 | . 1 . . . Indirectly . | . . . . . Trap Hack Attempts . | . . . . . Triggered . | . . . . . Disarmed . | . . . . . Reprogrammed . | . . . . . Reused . | . . . . . Traps Extracted . | . . . . . Installed . | . . . . . Triggered . | . . . . . Machines | -11 -10 -10 -10 -9 ---------- Run | Yrd Mat Min Exi Min Machines Disabled 2 | . 2 . . . Max in Single Turn 2 | . 2 . . . Machines Repaired . | . . . . . Machines Dismantled . | . . . . . Machines Sabotaged . | . . . . . Overloaded Fab Kills . | . . . . . Hacking | -11 -10 -10 -10 -9 --------- Run | Yrd Mat Min Exi Min Machines Accessed 8 | . 3 1 4 . Terminals 2 | . 2 . . . Fabricators . | . . . . . Repair Stations . | . . . . . Recycling Units 1 | . 1 . . . Scanalyzers . | . . . . . Garrison Access . | . . . . . Total Hacks 61 | . 11 1 49 . Successful 58 | . 8 1 49 . Failed 3 | . 3 . . . Catastrophic . | . . . . . Database Lockouts . | . . . . . Manual 2 | . . . 2 . Terminals 10 | . 10 . . . Fabricators . | . . . . . Repair Stations . | . . . . . Recycling Units 1 | . 1 . . . Scanalyzers . | . . . . . Garrison Access . | . . . . . Terminal Hacks 57 | . 7 1 49 . Record 51 | . 2 . 49 . Open Door 1 | . . 1 . . Emergency Access Points 1 | . 1 . . . Alert Level 1 | . 1 . . . Locate Traps 2 | . 2 . . . Maintenance Status 1 | . 1 . . . Fabricator Hacks . | . . . . . Repair Station Hacks . | . . . . . Recycling Unit Hacks 1 | . 1 . . . Report Inventory 1 | . 1 . . . Scanalyzer . | . . . . . Garrison Access Hacks . | . . . . . Unauthorized Hacks . | . . . . . Terminals . | . . . . . Fabricators . | . . . . . Repair Stations . | . . . . . Recycling Units . | . . . . . Scanalyzers . | . . . . . Garrison Access . | . . . . . Data Cores Recovered . | . . . . . Used . | . . . . . Hacking Detections 1 | . 1 . . . Full Trace Events . | . . . . . Feedback Events . | . . . . . Feedback Blocked . | . . . . . Robot Schematics Acquired . | . . . . . Robots Built . | . . . . . Authchips . | . . . . . Time . | . . . . . Total Robot Build Rating . | . . . . . Part Schematics Acquired . | . . . . . Parts Built . | . . . . . Authchips . | . . . . . Time . | . . . . . Total Part Build Rating . | . . . . . Parts Repaired . | . . . . . Time . | . . . . . Parts Recycled . | . . . . . Recycled Matter . | . . . . . Retrieved Matter . | . . . . . Retrieved Components . | . . . . . Parts Scanalyzed . | . . . . . Part Schematics Acquired . | . . . . . Parts Damaged . | . . . . . Bothacking | -11 -10 -10 -10 -9 ------------ Run | Yrd Mat Min Exi Min Used RIF Installer . | . . . . . Robots Hacked . | . . . . . Non-combat . | . . . . . Combat . | . . . . . Robot Hacks Applied . | . . . . . Relay Couplers Released . | . . . . . Fabnet Peak Effective % . | . . . . . Robots Rewired . | . . . . . Allies Hacked . | . . . . . Hacks Repelled . | . . . . . Allies | -11 -10 -10 -10 -9 -------- Run | Yrd Mat Min Exi Min Total Allies . | . . . . . Largest Group . | . . . . . Highest-Rated Group . | . . . . . Highest-Rated Ally . | . . . . . Total Orders . | . . . . . Ally Attacks . | . . . . . Total Damage . | . . . . . Kills . | . . . . . Allies Corrupted . | . . . . . Allies Melted . | . . . . . Intel | -11 -10 -10 -10 -9 ------- Run | Yrd Mat Min Exi Min Robot Analysis Total . | . . . . . Derelict Logs Recovered 1 | . . 1 . . Drone Launches . | . . . . . Drone Recoveries . | . . . . . Exploration | -11 -10 -10 -10 -9 ------------- Run | Yrd Mat Min Exi Min Turns Passed 2473 | 44 608 1001 718 102 Spaces Moved 1754 | 35 331 632 671 85 Core 19 | 19 . . . . Treads 886 | 16 331 539 . . Legs . | . . . . . Wheels 849 | . . 93 671 85 Hover . | . . . . . Flight . | . . . . . Fastest Speed 50 | 50 160 80 80 110 Average Speed 131 | 100 160 148 105 110 Slowest Speed 160 | 160 160 160 110 110 Overloaded Moves . | . . . . . Propulsion Burnouts . | . . . . . Robots Hopped . | . . . . . Cave-ins Triggered . | . . . . . Exploration Rate (%) 55 | 4 57 98 93 25 Regions Visited 4 Branch Regions 3 Pre-discovered Areas 1 | . . . 1 . Known Exits Taken . | . . . . . Unknown Exits Taken 4 | 1 1 1 1 . Scrap Searched 2 | . . 2 . . Spaces Dug . | . . . . . Terrain Destroyed 33 | . 33 . . . Melee . | . . . . . Projectile . | . . . . . AOE 33 | . 33 . . . Terrain Rammed . | . . . . . Walls Destroyed . | . . . . . Machines Disabled . | . . . . . Actions | -11 -10 -10 -10 -9 --------- Run | Yrd Mat Min Exi Min Total 1862 | 44 373 671 682 92 Wait 1 | . . . . 1 Move 1750 | 34 330 631 670 85 Hop . | . . . . . Pick Up 23 | 6 4 6 6 1 Fast Attach 1 | 1 . . . . Attach 14 | 3 4 4 1 2 Detach 4 | . 2 . 1 1 Swap . | . . . . . Drop 6 | . . 3 3 . Fire 59 | . 33 24 . 2 Melee . | . . . . . Ram . | . . . . . Kick . | . . . . . Crush 3 | . . 3 . . Escape Stasis . | . . . . . Rewire 1 | . . . 1 . Trap . | . . . . . Miscellaneous . | . . . . . Route ------- -11/Scrapyard -10/Materials (discovered 4 exits: [*Mat x2] / *Min x2) -10/Mines (discovered 4 exits: [*Mat x2] / *Exi / [*Sub]) -10/Exiles (discovered 2 exits: [*Min x2]) -9/Mines (discovered 1 exit: [*Mat]) History --------- Turn | Location | Event 23 | -11/Scrapyard | Discovered new exit (range 15) 45 | -11/Scrapyard | Entered Materials 45 | -10/Materials | Discovered new exit (range 16) 317 | -10/Materials | Build established: Mutant 321 | -10/Materials | Discovered new exit (range 14) 329 | -10/Materials | Discovered new exit (range 13) 501 | -10/Materials | Discovered new exit (range 8) 653 | -10/Materials | Entered Mines 733 | -10/Mines | Discovered new exit (range 5) 842 | -10/Mines | Discovered new exit (range 7) 950 | -10/Mines | Received a Rocket Launcher from a helpful Derelict 1225 | -10/Mines | Learned Materials security intel 1427 | -10/Mines | Discovered new exit (range 8) 1491 | -10/Mines | Core integrity fell below 50% 1568 | -10/Mines | Found the Drone Emporium 1579 | -10/Mines | Found Prototype Device 1649 | -10/Mines | Deemed a non-threat by the Exiles lab entrance 1649 | -10/Mines | Discovered new exit (range 5) 1654 | -10/Mines | Entered Exiles 1667 | -10/Exiles | Discovered new exit (range 14) 1677 | -10/Exiles | Met 8R-AWN 1691 | -10/Exiles | Met EX-HEX 1763 | -10/Exiles | Met EX-DEC 1797 | -10/Exiles | Visited The Gauntlet 1882 | -10/Exiles | Learned location of Zion (-7) 1930 | -10/Exiles | Discovered new exit (range 15) 1994 | -10/Exiles | Met EX-BIN 2018 | -10/Exiles | Aligned with FarCom system 2019 | -10/Exiles | Given EX-Vault access code 2077 | -10/Exiles | Opened EX-Vault 2083 | -10/Exiles | Found Prototype Ballistic Cannon 2108 | -10/Exiles | Warned to stay clear of 0b10 Research branches 2372 | -10/Exiles | Left Exiles lab with AWS/Autocannon 2372 | -10/Exiles | Entered Mines 2396 | -9/Mines | YI-UF0 nonchalantly dropped a Grenade Launcher on the ground 2396 | -9/Mines | Discovered new exit (range 5) 2451 | -9/Mines | Assembled infested the area 2456 | -9/Mines | Assisted by a Guerilla fighting off Assembled 2468 | -9/Mines | Core integrity fell below 20% 2474 | -9/Mines | Destroyed by as-44889 with Assembled Heavy Rifle Last Messages --------------- K-01 Serf collects debris. 75L|XGXHVBDXOZJJ2%H VZIT U-05 Engineer lays Concrete. T-07 Excavator is excavating. ALERT: Infestation in the mines, dispatching Demolisher response squad. A derelict emerges from the shadows: "You need to get out of here! I've been tracking a group of Assembled to figure out where they're coming from, and they're closing on this area, come on!" C-30 ARC bursts open, deploying its payload. D-53 Grenadier unfolds itself. HV Slug penetrates Wall. as-72099 destroyed. as-58613 destroyed. as-97120 destroyed. Ion Engine destroyed. as-37897 destroyed. Acquired 68 matter. Map ----- +----------------------------------------------------+ | ?????????????????????????????????????????????? | | ?????????????????????????????????????????????? | | ?????????????????????????????????????????????? | | ?????????????????????????????????????????????? | | ?????????????????????????????????????????????? | | ?????????????????????????????????????????????? | | ?????????????????????????????????????????????? | | ?????????????????????????????????????????????? | | ?????????????????????????????????????????????? | | ?????????????????????????????????????????????? | | ?????????????????????????????????????????????? | | ?????????????????????????????????????????????? | | ?????????????????????????????????????????????? | | ?????????????????????????????????????????????? | | ?????????????????????????????????????????????? | | ?????????????????????????????????????????????? | | ????????##???????????????????????????????????? | | ???????## ???????????????????????????????????? | | ??????## ??????????????????????????????????? | | ??????# ?????????????????????????????????? | | ??????# ##?####??????????????????????????? | | ??????# ## #####??????????????????????? | | ???????# ## ??????????????????????? | | ?????????# ##a#??????????????????????? | | ????????????## # #??????????????????????? | | ????????????# #@#??????????????????????? | | ????????????# ! #??????????????????????? | | ????????????# ####??????????????????????? | | ????????????# #????????????????????????? | | ????????????## #????????????????????????? | | ?????????????# ######???????????????????? | | ?????????????###d $ #????????????????? | | ???????????????# #######???????????????????? | | ??????????????? #?????????????????????????? | | ?????????????? #?????????????????????????? | | ???????????#?? #?????????????????????????? | | ???????????# ## #?????????????????????????? | | ???????????# #?????????????????????????? | | ???????????## #?????????????????????????? | | ????????????# ## ###?????????????????????????? | | ?????????????#?#%#???????????????????????????? | | ???????????????#"#???????????????????????????? | | ????????????#### ####????????????????????????? | | ????????????# #????????????????????????? | | ????????????# ##### #????????????????????????? | | ????????##### #???# #????????????????????????? | | ????????# #???# #????????????????????????? | | ????????# #####??## ###??????????????????????? | | ????????# #??????? ##????? #??????????????? | | ????????# #??????? ### #???????????????? | +----------------------------------------------------+ Best States ------------- Heat Dissipation 25 Energy Generation 14 Energy Capacity 250 Matter Stores 264 Matter Capacity 300 Sight Range 18 Terrain Scan Density 10 Evasion (%) 50 Recoil Reduction 2 Item Schematics ----------------- None Robot Schematics ------------------ None Fabricated ------------ Nothing Alien Tech Used ----------------- None Achievements -------------- Librarian Challenges ------------ None Game ------ Seed HybridSwordRipper Manual? 0 Play Time 00:26:16 Cumulative 2.8 hours Start 2024.05.26 @ 01:41:07 End 2024.05.26 @ 02:06:03 Sessions 1 Manual Loads 0 Difficulty Rogue Special Mode None Game No. 5 Rogue 2 Adventurer 3 Explorer 0 Win Type - Total 0 Types 0/0/0/0/0/0/0/0/0 Lore% 8 Gallery% 6 Achievement% 7 Wizard Run 0 Options --------- Layout 1 ASCII 0 Keyboard 0 Movement Mouse Keybinds 0 Fullscreen 1 Font 24/Smallcaps Map View 50x35 Zoom Use 0% Tactical HUD 0 Map Filters NONE Filters NONE Steam 1 RUN: 002258c6-661b-4f4f-b348-f925657ae535